[Event "GER-ch Youth-ODJM 2022 A"]
[Site "Willingen"]
[Date "2022.06.10"]
[Round "8.18"]
[White "Herter, Arne"]
[Black "Metzinger, Hannes"]
[Result "0-1"]
[ECO "C84"]
[WhiteElo "1943"]
[BlackElo "1845"]
[Annotator "TA"]
[PlyCount "54"]
[EventDate "2022.06.05"]
[EventType "swiss"]
[EventRounds "9"]
[EventCountry "GER"]
[SourceTitle "playchess.com"]
[Source "ChessBase"]
[SourceQuality "1"]
[TimeControl "40/4500+30:900+30"]

{[%evp 13,54,15,33,32,36,34,56,41,41,32,47,48,76,50,58,54,73,-28,-50,-62,-67,-67,-81,-78,0,0,9,0,87,102,94,92,106,-9,-10,-435,-409,-412,-402,-356,-352,-29988,-29989]} 1. e4 {[%emt 0:00:00]} e5 {[%emt 0:00:00]} 2. Nf3 {[%emt 0:00:00]} Nc6 {[%emt 0:00:00]} 3. Bb5 {[%emt 0:00:00][%cal Bf1b5,Bb5a4,Ba4b3][%mdl 32]} a6 {[%emt 0:00:00]} 4. Ba4 {[%emt 0:00:00]} Nf6 {[%emt 0:00:00]} 5. O-O {[%emt 0:00:00]} Be7 {[%emt 0:00:00]} 6. d3 {[%emt 0:00:00]} b5 {[%emt 0:00:00]} 7. Bb3 {[%emt 0:00:00]} Bb7 {[%emt 0:00:00]} 8. Nbd2 {[%emt 0:00:00] C84: Closed Ruy Lopez: Unusual White 6th moves.} O-O {[%emt 0:00:00]} 9. Re1 {[%emt 0:00:00]} d5 {[%emt 0:00:00]} 10. exd5 {[%emt 0:00:00] White is slightly better.} Nxd5 {[%emt 0:00:00]} 11. Nxe5 {[%emt 0:00:00]} Nxe5 {[%emt 0:00:00]} 12. Rxe5 {[%emt 0:00:00]} Nf4 {[%emt 0:00:00]} 13. Nf3 {[%emt 0:06:56]} Nxg2 {[%emt 0:00:00]} 14. Kxg2 {[%emt 0:09:36]} Qd7 {[%emt 0:00:00]} 15. h3 {[%emt 0:01:33] Against Qg4+} ({White should try} 15. Bf4 $1 $16 {[%cal Rf4g3]}) 15... a5 $1 $11 {[%emt 0:00:00][%mdl 1024] aiming for ...Bf6. Black has compensation.} 16. c4 {[%emt 0:14:46]} Ra6 $1 {[%emt 0:00:00]} 17. d4 {[%emt 0:21:06][%cal Bd3d4,Bd4e5][%mdl 32] Threatens to win with Bc2.} (17. cxb5 Rg6+ 18. Kh2 a4 $17) 17... Rg6+ {[%emt 0:21:30]} 18. Kh2 {[%emt 0:00:29] [#] Strongly threatening Be3.} (18. Kf1 Qxh3+ 19. Ke2 Bxf3+ 20. Kd2 Bb4+ 21. Kd3 Bxd1+ 22. Be3 Qf1+ 23. Ke4 Rg4+ 24. Bf4 Rxf4+ $1 {[%mdl 512]} 25. Kd5 Qh1+ 26. f3 Qxf3+) 18... Bd6 $146 {[%emt 0:00:21] Black is more active.} (18... Rf6 $1 $17 {[%cal Rf6f3]} 19. Ne1 (19. d5 bxc4 20. Rxe7 Qxe7 $15) 19... Rxf2+ 20. Kg1 Rf6) ({Predecessor:} 18... Rf6 19. Re3 Bd6+ 20. Kg2 Rg6+ 21. Kf1 Qxh3+ 22. Ke2 Rg2 23. Bd2 Bg3 24. Be1 Bf4 {0-1 (33) Jolly,J (2376)-Gozzoli,Y (2529) La Massana 2014}) 19. Nh4 {[%emt 0:14:31]} Qc6 {[%emt 0:24:22] ( -> ...Rg2+). The board is on fire.} 20. Qf1 {[%emt 0:10:12] Inhibits Rg2+.} (20. cxb5 $2 {gets mated.} Rg2+ 21. Kh1 {[#]} Rg1+ $3 {[%mdl 512]} 22. Kxg1 Qh1#) 20... Bxe5+ {[%emt 0:11:51]} (20... Qe4 $1 $11 {remains equal.} 21. Nxg6 hxg6 22. cxb5 Qxd4) 21. dxe5 $16 {[%emt 0:00:13]} Qe4 {[%emt 0:00:25]} 22. Nxg6 {[%emt 0:02:11]} hxg6 {[%emt 0:00:06]} 23. f4 {[%emt 0:01:51]} (23. Bd1 $16) 23... Rd8 $11 {[%emt 0:00:08] White must now prevent ...a4.} (23... a4 $5 24. Bd1 Rd8 $11) 24. Qf2 $2 {[%emt 0:02:23][%mdl 8192] This costs White the game.} (24. cxb5 $11 a4 25. Bxa4 (25. Bc4 $2 Rd1 $19) 25... Qxa4 26. Be3) 24... Qh1+ {[%emt 0:00:44]} 25. Kg3 {[%emt 0:00:06]} Rd3+ {[%emt 0:00:09][%mdl 64] Skewer} 26. Be3 {[%emt 0:00:47]} Qxa1 {[%emt 0:00:19]} 27. cxb5 $2 {[%emt 0:00:52]} (27. Bc2 $19 Rd8 28. cxb5) 27... Qc1 {[%emt 0:00:44] Weighted Error Value: White=0.89/Black=0.17 (very precise)} 0-1

[Event "GER-ch Youth-ODJM 2022 A"]
[Site "Willingen"]
[Date "2022.06.10"]
[Round "8.19"]
[White "Zha, Kevin"]
[Black "Kamp, Adrian"]
[Result "0-1"]
[ECO "B22"]
[WhiteElo "1835"]
[BlackElo "1969"]
[Annotator "TA"]
[PlyCount "68"]
[EventDate "2022.06.05"]
[EventType "swiss"]
[EventRounds "9"]
[EventCountry "GER"]
[SourceTitle "playchess.com"]
[Source "ChessBase"]
[SourceQuality "1"]
[TimeControl "40/4500+30:900+30"]

{[%evp 9,68,89,100,57,60,52,64,19,43,60,52,0,0,-13,-6,-59,0,0,0,0,0,-60,0,0,37,14,30,-35,26,0,4,-92,-18,-10,0,-43,302,249,360,187,203,170,808,163,164,114,109,12,7,-52,-62,-57,26,33,27,-35,-37,-839,-817,-919,-898]} 1. e4 {[%emt 0:00:00]} c5 {[%emt 0:00:00]} 2. c3 {[%emt 0:00:00]} Qa5 {[%emt 0:00:00]} 3. Nf3 {[%emt 0:00:00]} Nc6 {[%emt 0:00:00]} 4. Bc4 {[%emt 0:00:00]} d6 {[%emt 0:00:00]} 5. O-O {[%emt 0:00:00]} Nf6 {[%emt 0:00:00]} 6. Qb3 {[%emt 0:06:11] B22: Sicilian: 2 c3.} e6 {[%emt 0:00:00]} 7. d4 $1 {[%emt 0:11:34]} Qc7 {[%emt 0:02:43] [#]} 8. Bd3 $146 {[%emt 0:10:51] White is slightly better.} (8. d5 $5 {[%cal Rd5c6]} Na5 9. Qa4+ Kd8 10. Bg5 $14) ({Predecessor:} 8. Re1 a6 9. Qd1 b5 10. Bd3 cxd4 11. cxd4 Nb4 12. Nc3 Nxd3 13. Qxd3 b4 14. e5 {1-0 (36) Skalka,J (1737)-Balazec,L (1929) Stare Mesto 2016}) 8... d5 {[%emt 0:09:02]} 9. exd5 {[%emt 0:04:28]} Nxd5 {[%emt 0:02:19]} 10. Be3 {[%emt 0:03:38]} (10. Na3 $14) 10... Be7 $11 {[%emt 0:12:18]} 11. Na3 {[%emt 0:02:56]} a6 {[%emt 0:04:21]} 12. Rac1 {[%emt 0:06:58]} (12. Bd2 $11) 12... O-O {[%emt 0:05:32]} (12... Nxe3 $15 13. fxe3 b5) 13. Qc2 {[%emt 0:09:49]} g6 {[%emt 0:06:36]} 14. Bh6 {[%emt 0:08:00]} Rd8 {[%emt 0:01:12]} 15. h4 {[%emt 0:11:13]} (15. Be4 $11) 15... b5 {[%emt 0:11:25]} (15... e5 $15) 16. h5 {[%emt 0:01:50][%cal Rh5g6]} Nf4 {[%emt 0:01:30]} 17. hxg6 {[%emt 0:00:26]} Nxg6 {[%emt 0:01:36]} 18. Rfe1 {[%emt 0:01:09]} (18. Qe2 $1 $11) 18... c4 {[%emt 0:05:21]} (18... Rd5 $15) 19. Bxg6 hxg6 {[%emt 0:00:35]} 20. Ng5 {[%emt 0:02:35]} (20. Qe4 $11) 20... Bf8 {[%emt 0:01:54]} ({Better is} 20... Rd5 $17 21. Qd2 e5) 21. Bxf8 {[%emt 0:00:25]} Kxf8 {[%emt 0:00:59]} 22. Qe4 {[%emt 0:00:05] [#] And now Qh4 would win.} (22. Re4 $5 {[%cal Re4h4]}) 22... Rb8 $2 {[%emt 0:04:26][%mdl 8192]} (22... Kg7 $1 $15 {stays ahead.}) 23. Re3 {[%emt 0:00:37]} Ne7 {[%emt 0:01:10]} (23... Qe7 $142) 24. Rf3 {[%emt 0:01:42]} (24. Qf3 Nf5 $11) (24. Rh3 $142) 24... Nf5 $18 {[%emt 0:01:01]} 25. Rh3 {[%emt 0:00:33] Black must now prevent Rh8+.} Nd6 $2 {[%emt 0:04:03]} (25... Kg8 26. Rh7 Rd7) 26. Nh7+ $2 {[%emt 0:01:13]} (26. Qe5) 26... Ke7 {[%emt 0:00:52][%cal Bf8e7,Be7d7,Bd7c6,Bc6c5][%mdl 32]} 27. Qh4+ {[%emt 0:00:35]} ({White should play} 27. Qf4 $18) 27... Kd7 $16 {[%emt 0:00:10]} 28. d5 {[%emt 0:01:24]} (28. Nf6+ $16 Kc6 29. Qg5) 28... exd5 $11 {[%emt 0:00:55]} 29. Re1 {[%emt 0:00:11]} ({Don't play} 29. Qd4 Kc6 30. Rf3 (30. Nf6 $2 Bxh3 31. Qxd5+ Kb6 $19) 30... Nf5 31. Qf6+ Rd6 $17) ({White should try} 29. Nc2 $1 $11 Kc6 30. Nb4+ Kb7 31. Nxd5) 29... Kc6 $36 {[%emt 0:00:35][%mdl 2048] Black has some pressure.} 30. Re7 {[%emt 0:00:42]} Qb6 {[%emt 0:01:47] [#]} (30... Rd7 $15 31. Re1 Nf5 32. Qf6+ Rd6) 31. Nc2 $1 $11 {[%emt 0:00:09] Nb4+ would kill now.} Nf5 $1 {[%emt 0:03:38]} 32. Nb4+ {[%emt 0:00:56]} (32. Qf6+ $11 Kc5 33. Rxf7 Qxf6 34. Nxf6 (34. Rxf6 Rb6 $11)) 32... Kc5 $15 {[%emt 0:00:11] Really sharp!} 33. Qf6 {[%emt 0:00:45][%mdl 8192]} (33. Qf4 $15 Nxe7 34. Qd4+ Kd6 35. Qf4+ Kc5 36. Qd4+ Kd6 37. Qf4+ Kc5) 33... Qxf6 $19 {[%emt 0:00:59]} 34. Nxf6 {[%emt 0:00:49]} Nxe7 {[%emt 0:00:17] What a bad dream for White.  Weighted Error Value: White=0.76/Black=0.38} 0-1

[Event "GER-ch Youth-ODJM 2022 A"]
[Site "Willingen"]
[Date "2022.06.10"]
[Round "8.20"]
[White "Fuchs, Florian"]
[Black "Paeslack, Luis"]
[Result "1/2-1/2"]
[ECO "B54"]
[WhiteElo "2320"]
[BlackElo "1889"]
[Annotator "TA"]
[PlyCount "64"]
[EventDate "2022.06.05"]
[EventType "swiss"]
[EventRounds "9"]
[EventCountry "GER"]
[SourceTitle "playchess.com"]
[Source "ChessBase"]
[SourceQuality "1"]
[TimeControl "40/4500+30:900+30"]

{[%evp 19,64,0,0,0,0,0,0,0,0,0,0,6,14,0,0,0,0,0,0,0,42,0,0,-32,-25,-15,-1,-2,0,0,0,-17,0,0,0,0,0,0,0,-24,-24,-24,0,0,0,0,0]} 1. e4 {[%emt 0:00:00]} c5 {[%emt 0:00:00]} 2. Nf3 {[%emt 0:00:00]} d6 {[%emt 0:00:00]} 3. d4 {[%emt 0:00:00]} cxd4 {[%emt 0:00:00]} 4. Nxd4 {[%emt 0:00:00]} Nf6 {[%emt 0:00:00]} 5. f3 {[%emt 0:00:00]} Nc6 {[%emt 0:00:00]} 6. c4 {[%emt 0:00:00]} e6 {[%emt 0:00:00]} 7. Nc3 {[%emt 0:00:00]} Be7 {[%emt 0:00:00]} 8. Be3 {[%emt 0:00:00]} O-O {[%emt 0:00:00]} 9. Be2 {[%emt 0:00:00]} d5 {[%emt 0:00:00]} 10. cxd5 {[%emt 0:00:00]} exd5 {[%emt 0:00:00]} 11. Nxc6 {[%emt 0:00:00] B55: Sicilian: 2...d6 3 d4 cxd4 4 Nxd4 Nf6 5 f3.} bxc6 {[%emt 0:00:00]} 12. exd5 {[%emt 0:00:00]} Nxd5 {[%emt 0:00:00]} 13. Nxd5 {[%emt 0:00:00]} cxd5 {[%emt 0:00:00]} 14. O-O {[%emt 0:00:00]} Bf6 {[%emt 0:00:00]} 15. Bd4 {[%emt 0:01:33]} Rb8 {[%emt 0:00:00]} 16. Qd2 {[%emt 0:05:26]} Re8 {[%emt 0:00:00]} 17. Rfe1 {[%emt 0:01:27]} a5 {[%emt 0:44:38]} 18. b3 {[%emt 0:16:37] [#]} h6 $146 {[%emt 0:23:22]} ({Predecessor:} 18... Bxd4+ 19. Qxd4 {½-½ (19) Sonntag,H (2350)-Van der Stricht,G (2358) Belgium 2017}) 19. Rad1 {[%emt 0:02:05][%cal Ba1d1,Bd1d4,Bd4a4][%mdl 32]} Bf5 {[%emt 0:05:47]} 20. Bf1 {[%emt 0:06:38] And now Rxe8+ would win.} Rxe1 {[%emt 0:09:19]} 21. Qxe1 {[%emt 0:01:38]} Bxd4+ {[%emt 0:00:51]} 22. Rxd4 {[%emt 0:00:07]} Qb6 {[%emt 0:00:21]} 23. Qf2 {[%emt 0:00:25]} Be6 {[%emt 0:00:43]} 24. Ra4 {[%emt 0:06:06] Strongly threatening Qxb6.} Qc7 {[%emt 0:00:15]} 25. Qd2 {[%emt 0:00:11]} Qc5+ {[%emt 0:00:19]} (25... Rb4 {is more complex.} 26. Rxb4 axb4 27. Qxb4 Qa7+) 26. Qd4 {[%emt 0:01:38]} Qxd4+ {[%emt 0:00:17]} 27. Rxd4 {[%emt 0:00:07]} Rb4 {[%emt 0:00:07]} 28. Rxb4 {[%emt 0:05:07]} axb4 $11 {[%emt 0:00:04] KB-KB} 29. Bd3 {[%emt 0:00:05]} Kf8 {[%emt 0:00:50]} 30. Kf2 {[%emt 0:00:05]} Ke7 {[%emt 0:01:03]} 31. Ke3 {[%emt 0:00:06]} Kd6 {[%emt 0:00:08]} 32. Kd4 {[%emt 0:00:04]} f6 {[%emt 0:00:51] An interesting draw.  Weighted Error Value: White=0.06 (flawless) /Black=0.06 (flawless)} 1/2-1/2

[Event "GER-ch Youth-ODJM 2022 A"]
[Site "Willingen"]
[Date "2022.06.10"]
[Round "8.21"]
[White "Sabirov, Rafael"]
[Black "Gallasch, Robin"]
[Result "1/2-1/2"]
[ECO "B12"]
[WhiteElo "1704"]
[BlackElo "2063"]
[Annotator "TA"]
[PlyCount "98"]
[EventDate "2022.06.05"]
[EventType "swiss"]
[EventRounds "9"]
[EventCountry "GER"]
[SourceTitle "playchess.com"]
[Source "ChessBase"]
[SourceQuality "1"]
[TimeControl "40/4500+30:900+30"]

{[%evp 9,98,16,34,34,45,16,22,11,21,26,27,33,49,29,98,98,98,95,89,74,71,70,112,85,96,16,10,11,35,32,115,91,105,104,108,71,75,34,40,21,13,13,139,121,159,158,164,154,161,35,35,35,35,35,35,35,35,8,8,8,35,35,35,0,35,0,35,0,35,0,35,0,0,0,0,0,0,0,0,0,0,0,0,0,0,0,0,0,0,0,0]} 1. e4 {[%emt 0:00:00]} c6 {[%emt 0:00:00]} 2. d4 {[%emt 0:00:00]} d5 {[%emt 0:00:00]} 3. f3 {[%emt 0:00:00]} dxe4 {[%emt 0:00:00]} 4. fxe4 {[%emt 0:00:00]} e5 {[%emt 0:00:00]} 5. Nf3 {[%emt 0:00:00]} Bg4 {[%emt 0:00:00]} 6. c3 {[%emt 0:00:00] B12: Caro-Kann: Advance Variation.} Nd7 {[%emt 0:00:00]} 7. Be2 {[%emt 0:00:00]} Bd6 {[%emt 0:00:00]} 8. Nbd2 {[%emt 0:00:00]} Ngf6 {[%emt 0:00:00]} 9. Nc4 {[%emt 0:00:00]} Bc7 {[%emt 0:36:54]} (9... Nxe4 $2 10. Ng5 $1 {[%mdl 512]} Bxe2 11. Qxe2 $18) 10. Nfxe5 {[%emt 0:00:00] [#]} (10. Ncxe5 {feels hotter.} Nxe5 11. Nxe5 Be6 12. Bf4) 10... Nxe5 $146 {[%emt 0:11:01]} ({Predecessor:} 10... Bxe2 11. Qxe2 Nxe5 12. dxe5 Nd7 13. Bf4 g5 14. Bg3 h5 15. O-O-O Qe7 16. e6 Nb6 17. Bxc7 Qxc7 18. Nd6+ {1-0 (18) Kummerow,H (2321)-Shishkov,M (1644) Oberhausen 2011}) 11. Nxe5 {[%emt 0:00:20]} (11. dxe5 {is interesting.} Bxe2 12. Qxe2 Nd7 13. Bf4) 11... Bxe2 {[%emt 0:00:32]} (11... Be6 $1 $11) 12. Qxe2 $16 {[%emt 0:01:07]} Bxe5 {[%emt 0:07:54][%mdl 64] Remove Defender} 13. dxe5 {[%emt 0:01:36]} Nd7 {[%emt 0:00:05] [#]} 14. e6 $1 {[%emt 0:00:58]} fxe6 {[%emt 0:00:45]} 15. O-O {[%emt 0:03:36]} Qe7 {[%emt 0:02:47]} 16. Qh5+ {[%emt 0:11:03]} g6 {[%emt 0:02:51]} 17. Qg5 {[%emt 0:18:53]} ({White should play} 17. Qh6 $16 O-O-O 18. Bg5 Qc5+ 19. Be3) 17... Qxg5 $11 {[%emt 0:03:48]} 18. Bxg5 {[%emt 0:00:17]} Rf8 {[%emt 0:00:03]} 19. Rfd1 {[%emt 0:05:22]} Rf7 {[%emt 0:05:41]} (19... e5 $14) 20. Rd6 $16 {[%emt 0:07:08]} Nf8 {[%emt 0:01:19]} 21. Rad1 {[%emt 0:02:57] White threatens Rd8+ and mate.} Rd7 {[%emt 0:01:18] Against Rd8+} 22. e5 {[%emt 0:01:01] White is much more active. The black rooks are badly placed.} Rc8 {[%emt 0:01:42]} 23. Kf2 {[%emt 0:05:59]} Rcc7 $1 {[%emt 0:05:11]} 24. Bh6 {[%emt 0:05:07]} Rxd6 {[%emt 0:01:18]} 25. Rxd6 $11 {[%emt 0:01:08][%mdl 4096] Endgame KRB-KRN} Re7 {[%emt 0:00:18]} (25... Rf7+ $11 {remains equal.} 26. Kg3 Rf5) 26. Ke2 {[%emt 0:00:46]} Kf7 {[%emt 0:01:06]} 27. a4 {[%emt 0:01:25]} a6 {[%emt 0:00:25]} 28. Rd8 {[%emt 0:06:26][%csl Gh6][%cal Rd8f8]} Re8 {[%emt 0:00:27]} 29. Rxe8 {[%emt 0:00:25]} ({Better is} 29. Rd1 $18) 29... Kxe8 $14 {[%emt 0:00:02]} 30. Bxf8 {[%emt 0:00:23]} Kxf8 $18 {[%emt 0:00:05] KP-KP} 31. Kd3 {[%emt 0:00:44]} Ke7 {[%emt 0:01:11]} 32. Kc4 {[%emt 0:01:10] And now Kc5 would win.} Kd7 {[%emt 0:00:29]} 33. Kc5 {[%emt 0:02:34] Black must now prevent Kb6.} Kc7 {[%emt 0:00:05]} 34. a5 {[%emt 0:00:40]} Kd7 {[%emt 0:00:30]} 35. Kb6 {[%emt 0:01:08]} Kc8 {[%emt 0:00:05]} 36. Kc5 {[%emt 0:00:29]} Kd7 {[%emt 0:00:55]} 37. Kb6 {[%emt 0:00:06]} Kc8 {[%emt 0:00:04]} 38. c4 {[%emt 0:00:06]} Kb8 {[%emt 0:00:29]} 39. b3 {[%emt 0:01:31]} Kc8 {[%emt 0:00:05]} 40. b4 {[%emt 0:06:55]} g5 {[%emt 0:02:57] The position is equal.} 41. b5 {[%emt 0:13:04]} axb5 {[%emt 0:00:00]} 42. cxb5 {[%emt 0:00:11]} cxb5 {[%emt 0:00:00]} 43. Kxb5 {[%emt 0:00:09] aiming for a6.} Kc7 {[%emt 0:00:00]} 44. Kc5 {[%emt 0:00:24]} h5 {[%emt 0:00:00]} 45. Kb5 $1 {[%emt 0:00:28]} Kd7 {[%emt 0:00:00]} 46. Kb6 {[%emt 0:00:16]} Kc8 {[%emt 0:00:00]} 47. a6 {[%emt 0:01:06]} bxa6 {[%emt 0:00:00]} 48. Kxa6 {[%emt 0:00:12] Threatening mate with Kb6.} Kc7 {[%emt 0:00:00] Strongly threatening ...Kc6.} 49. Kb5 {[%emt 0:00:12] Intending Kc5 and mate.} Kb7 $1 {[%emt 0:00:00] Weighted Error Value: White=0.19 (very precise) /Black=0.19 (very precise)} 1/2-1/2

[Event "GER-ch Youth-ODJM 2022 A"]
[Site "Willingen"]
[Date "2022.06.10"]
[Round "8.22"]
[White "Schulz, Jannis"]
[Black "Fock, Amina"]
[Result "1/2-1/2"]
[ECO "D02"]
[WhiteElo "1810"]
[BlackElo "1790"]
[Annotator "NA RC COMBH"]
[PlyCount "73"]
[EventDate "2022.06.05"]
[EventType "swiss"]
[EventRounds "9"]
[EventCountry "GER"]
[SourceTitle "playchess.com"]
[Source "ChessBase"]
[SourceQuality "1"]
[TimeControl "40/4500+30:900+30"]

1. d4 {[%emt 0:00:00]} Nf6 {[%emt 0:00:00]} 2. Nf3 {[%emt 0:00:00]} d5 {[%emt 0:00:00]} 3. Bf4 {[%emt 0:00:00]} e6 {[%emt 0:00:00]} 4. e3 {[%emt 0:00:00]} c5 {[%emt 0:00:00]} 5. dxc5 {[%emt 0:00:00]} Bxc5 {[%emt 0:00:00]} 6. c3 {[%emt 0:00:00]} O-O {[%emt 0:00:00]} 7. Bd3 {[%emt 0:00:00]} Bd6 {[%emt 0:01:35]} 8. Bxd6 {[%emt 0:00:00]} Qxd6 {[%emt 0:01:17]} 9. Nbd2 {[%emt 0:00:00]} e5 {[%emt 0:06:12]} 10. e4 {[%emt 0:00:00]} dxe4 {[%emt 0:01:59]} 11. Nxe4 {[%emt 0:00:00]} Nxe4 {[%emt 0:03:50]} 12. Bxe4 {[%emt 0:00:00]} Qe7 {[%emt 0:00:36]} 13. O-O {[%emt 0:00:00]} Nd7 {[%emt 0:04:32]} 14. Qc2 {[%emt 0:04:41]} (14. Bc2 $14) 14... Nf6 {[%emt 0:01:43]} 15. Rfe1 {[%emt 0:02:40]} Nxe4 {[%emt 0:04:35]} 16. Qxe4 {[%emt 0:00:51]} f6 {[%emt 0:00:22]} 17. b3 {[%emt 0:06:46]} Be6 {[%emt 0:04:42]} 18. c4 {[%emt 0:02:54]} Rfd8 {[%emt 0:02:49]} 19. Rad1 {[%emt 0:01:47]} a6 {[%emt 0:09:30]} 20. Nd4 {[%emt 0:12:45]} Bf7 {[%emt 0:06:19]} 21. Nf5 {[%emt 0:02:25]} Qb4 {[%emt 0:08:15]} 22. Ne3 {[%emt 0:05:47]} b5 {[%emt 0:02:23]} 23. Rc1 {[%emt 0:19:20]} Rac8 {[%emt 0:02:49]} 24. h3 {[%emt 0:14:48]} bxc4 {[%emt 0:03:10]} 25. Nxc4 {[%emt 0:02:13]} Bxc4 {[%emt 0:00:48]} 26. Rxc4 {[%emt 0:01:29]} Rxc4 {[%emt 0:00:34]} 27. bxc4 {[%emt 0:00:05]} Rd4 {[%emt 0:05:31]} 28. Qa8+ $11 {[%emt 0:00:29]} Kf7 {[%emt 0:00:39]} 29. Re3 {[%emt 0:04:41]} Qxc4 {[%emt 0:07:28]} 30. Qb7+ {[%emt 0:00:15]} Ke6 {[%emt 0:00:43]} 31. Qxg7 {[%emt 0:00:38]} Rd1+ {[%emt 0:00:36]} 32. Kh2 {[%emt 0:00:01]} Qf4+ {[%emt 0:00:47]} 33. Rg3 {[%emt 0:00:07]} Rd7 {[%emt 0:01:31]} (33... h6 $11 {should be considered.}) 34. Qg8+ {[%emt 0:00:22]} Kd6 {[%emt 0:01:29]} 35. Qb3 {[%emt 0:02:20]} Ke7 36. Qa3+ Rd6 37. Kg1 1/2-1/2

[Event "GER-ch Youth-ODJM 2022 A"]
[Site "Willingen"]
[Date "2022.06.11"]
[Round "9.1"]
[White "Roth, Jonas"]
[Black "Fröhlich, Niklas"]
[Result "1-0"]
[ECO "A45"]
[WhiteElo "1239"]
[BlackElo "1242"]
[Annotator "NA RC COMBH"]
[PlyCount "85"]
[EventDate "2022.06.05"]
[EventType "swiss"]
[EventRounds "9"]
[EventCountry "GER"]
[SourceTitle "playchess.com"]
[Source "ChessBase"]
[SourceQuality "1"]
[TimeControl "40/4500+30:900+30"]

1. d4 {[%emt 0:00:00]} Nf6 {[%emt 0:00:00]} 2. Nc3 {[%emt 0:00:00]} g6 {[%emt 0:00:00]} 3. e4 {[%emt 0:00:00]} Bg7 {[%emt 0:00:00]} 4. Bg5 {[%emt 0:00:00]} d6 {[%emt 0:00:00]} 5. e5 {[%emt 0:00:00]} dxe5 {[%emt 0:00:00]} 6. dxe5 {[%emt 0:00:00]} Ng4 {[%emt 0:00:00]} 7. Qxd8+ {[%emt 0:00:00]} Kxd8 {[%emt 0:00:00]} 8. Rd1+ {[%emt 0:00:00]} Nd7 {[%emt 0:00:00]} 9. e6 {[%emt 0:00:00]} fxe6 {[%emt 0:00:00]} 10. Bc4 {[%emt 0:00:00]} Rf8 {[%emt 0:00:00]} 11. Nf3 {[%emt 0:00:00]} h6 {[%emt 0:00:00]} 12. Bc1 {[%emt 0:00:00]} e5 {[%emt 0:06:12]} 13. O-O {[%emt 0:00:00]} c6 {[%emt 0:06:03]} 14. Ne4 {[%emt 0:00:00]} Ke8 {[%emt 0:02:14]} 15. Nh4 {[%emt 0:00:00]} Ndf6 {[%emt 0:08:34]} 16. Nc3 {[%emt 0:00:50]} Nh5 {[%emt 0:03:14]} 17. h3 {[%emt 0:01:42]} g5 {[%emt 0:00:14]} 18. hxg4 {[%emt 0:00:51]} Nf4 {[%emt 0:01:53]} 19. Nf5 {[%emt 0:02:42]} Bxf5 {[%emt 0:01:17]} 20. gxf5 {[%emt 0:00:17]} Rxf5 {[%emt 0:00:31]} 21. Bxf4 {[%emt 0:00:12]} exf4 {[%emt 0:00:20]} 22. Rd3 {[%emt 0:01:23]} g4 {[%emt 0:02:11]} 23. Be6 {[%emt 0:02:53]} Rg5 {[%emt 0:00:34]} 24. f3 {[%emt 0:01:16]} gxf3 {[%emt 0:02:15]} 25. Rdxf3 {[%emt 0:00:33]} Bd4+ {[%emt 0:00:54]} 26. Kh1 {[%emt 0:00:19]} Rd8 {[%emt 0:01:50]} 27. Rxf4 {[%emt 0:00:38]} Bg7 {[%emt 0:00:26]} 28. Bh3 {[%emt 0:02:56]} e5 {[%emt 0:02:49]} 29. Rg4 {[%emt 0:01:05]} Rxg4 {[%emt 0:00:13]} 30. Bxg4 {[%emt 0:00:08]} Rd2 {[%emt 0:00:14]} 31. Bf5 {[%emt 0:00:38]} Rd4 {[%emt 0:01:02]} 32. g4 {[%emt 0:02:20]} Rf4 {[%emt 0:00:14]} 33. Rxf4 {[%emt 0:00:28]} exf4 {[%emt 0:00:14]} 34. Kg2 {[%emt 0:00:03]} Kf7 {[%emt 0:00:30]} 35. Kf3 {[%emt 0:00:17]} Be5 {[%emt 0:00:22]} 36. Nd1 {[%emt 0:00:18]} Kf6 {[%emt 0:00:17]} 37. Be4 {[%emt 0:00:29]} Kg5 {[%emt 0:00:16]} 38. b3 {[%emt 0:00:13]} Bd4 {[%emt 0:00:21]} 39. a4 {[%emt 0:01:00]} a5 {[%emt 0:00:46]} 40. Bf5 {[%emt 0:00:24]} b6 {[%emt 0:00:28]} 41. Bd7 {[%emt 0:15:24]} c5 {[%emt 0:15:08]} 42. Nf2 {[%emt 0:00:41]} Be3 {[%emt 0:00:38]} 43. Nh3+ {[%emt 0:00:17]} 1-0

[Event "GER-ch Youth-ODJM 2022 A"]
[Site "Willingen"]
[Date "2022.06.11"]
[Round "9.2"]
[White "Akcapinar, Timur"]
[Black "Jansen, Malte"]
[Result "1-0"]
[ECO "C54"]
[WhiteElo "1278"]
[BlackElo "1391"]
[Annotator "NA RC COMBH"]
[PlyCount "43"]
[EventDate "2022.06.05"]
[EventType "swiss"]
[EventRounds "9"]
[EventCountry "GER"]
[SourceTitle "playchess.com"]
[Source "ChessBase"]
[SourceQuality "1"]
[TimeControl "40/4500+30:900+30"]

1. e4 {[%emt 0:00:00]} e5 {[%emt 0:00:00]} 2. Nf3 {[%emt 0:00:00]} Nc6 {[%emt 0:00:00]} 3. Bc4 {[%emt 0:00:00]} Bc5 {[%emt 0:00:00]} 4. c3 {[%emt 0:00:00]} Nf6 {[%emt 0:00:00]} 5. d3 {[%emt 0:00:00]} d6 {[%emt 0:00:00]} 6. a4 {[%emt 0:00:00]} a6 {[%emt 0:00:00]} 7. O-O {[%emt 0:00:00]} O-O {[%emt 0:00:00]} 8. Nbd2 {[%emt 0:00:00]} Be6 {[%emt 0:00:00]} 9. Re1 {[%emt 0:00:00]} Qd7 {[%emt 0:00:00]} 10. Nf1 {[%emt 0:00:00]} Bxc4 {[%emt 0:00:00]} 11. dxc4 {[%emt 0:04:02]} Ne7 {[%emt 0:09:12]} 12. Bg5 {[%emt 0:01:35]} Qe6 {[%emt 0:04:19]} 13. Nh4 {[%emt 0:02:22]} Ng4 {[%emt 0:09:11]} 14. Re2 {[%emt 0:00:39]} f6 {[%emt 0:01:32]} 15. Bc1 {[%emt 0:00:57]} Qxc4 {[%emt 0:02:41]} 16. Ng3 {[%emt 0:00:56]} Rad8 {[%emt 0:04:04]} 17. h3 {[%emt 0:01:29]} Nxf2 {[%emt 0:01:12]} 18. Rxf2 {[%emt 0:00:07]} Bxf2+ {[%emt 0:00:11]} 19. Kxf2 {[%emt 0:00:04]} d5 {[%emt 0:02:13]} 20. Qg4 {[%emt 0:01:41]} dxe4 {[%emt 0:01:40]} 21. Nxe4 {[%emt 0:02:34]} f5 {[%emt 0:00:54]} 22. Nf6+ {[%emt 0:00:15]} 1-0